bitfinex-derivatives/quotes_SOLF0:USTF0_20250623
["timestamp","ask_amount","ask_price","bid_price","bid_amount"]
[1750686266816,664.86665811,136.53,136.32,632.76]
[1750686267015,632.68,136.53,136.37,32.18665811]
[1750686267219,32.18665811,136.49,136.36,32.18665811]
[1750686267420,32.18665811,136.43,136.29,32.18665811]
[1750686267616,32.18665811,136.4,136.25,32.18665811]
[1750686267919,32.18665811,136.5,136.25,32.18665811]
[1750686267920,632.76,136.41,136.25,32.18665811]
[1750686268112,32.18665811,136.35,136.17,1.27664258]
[1750686268315,32.18665811,136.34,136.19,32.18665811]
[1750686268515,632.76,136.43,136.22,32.18665811]
[1750686268921,32.18665811,136.36,136.22,32.18665811]
[1750686269221,32.18665811,136.42,136.27,32.18665811]
[1750686269422,32.18665811,136.36,136.25,32.18665811]
[1750686269627,32.18665811,136.39,136.25,32.18665811]
[1750686269920,32.18665811,136.4,136.26,32.18665811]
[1750686270118,32.18665811,136.37,136.26,32.18665811]
[1750686270517,633.06,136.49,136.26,32.18665811]
[1750686270717,32.18665811,136.43,136.29,32.18665811]
[1750686270928,32.18665811,136.37,136.24,32.18665811]
[1750686271221,32.18665811,136.41,136.27,32.18665811]
[1750686271418,633.06,136.49,136.29,32.18665811]
[1750686271618,7.3332,136.32,136.21,7.3386]
[1750686271819,7.3332,136.32,136.15,1.27727515]
[1750686271820,32.18665811,136.39,136.25,32.18665811]
[1750686272019,32.18665811,136.43,136.31,32.18665811]
[1750686272315,32.18665811,136.39,136.26,32.18665811]
[1750686272520,32.18665811,136.3,136.15,1.27727515]
[1750686272720,32.18665811,136.31,136.19,32.18665811]
[1750686272919,32.18665811,136.33,136.19,39.52665811]
[1750686273125,2.4084,136.38,136.26,32.18665811]
[1750686273327,7.3326,136.33,136.25,32.18665811]
[1750686273520,34.59505811,136.38,136.25,32.18665811]
[1750686273823,2.4084,136.38,136.25,32.18665811]
[1750686274217,633.16,136.45,136.29,32.18665811]
[1750686274420,633.16,136.45,136.28,32.18665811]
[1750686274621,633.16,136.45,136.32,32.18665811]
[1750686274824,665.34665811,136.45,136.2,32.18665811]
[1750686275025,32.18665811,136.39,136.27,32.18665811]
[1750686275221,7.3333,136.32,136.24,32.18665811]
[1750686275528,32.18665811,136.39,136.24,32.18665811]
[1750686276025,32.18665811,136.39,136.15,633.16]
[1750686276236,32.18665811,136.39,136.25,32.18665811]
[1750686276420,7.3336,136.32,136.23,7.3378]
[1750686276619,633.16,136.45,136.26,32.18665811]
[1750686276827,32.18665811,136.4,136.26,32.18665811]
[1750686277016,32.18665811,136.38,136.24,32.18665811]
[1750686277222,32.18665811,136.41,136.27,32.18665811]
[1750686277526,32.18665811,136.32,136.15,633.16]
[1750686277728,633.28,136.33,136.19,32.18665811]
[1750686278021,633.28,136.33,136.22,32.18665811]
[1750686278227,633.28,136.33,136.2,32.18665811]
[1750686278424,633.28,136.33,136.23,32.18665811]
[1750686278730,633.28,136.33,136.26,32.18665811]
[1750686279026,633.28,136.33,136.15,633.16]
[1750686279223,633.28,136.33,136.23,32.18665811]
[1750686279526,633.28,136.33,136.21,32.18665811]
[1750686279731,32.18665811,136.32,136.2,32.18665811]
[1750686280029,32.18665811,136.31,136.18,32.18665811]
[1750686280328,32.18665811,136.36,136.23,32.18665811]
[1750686280523,32.18665811,136.36,136.21,32.18665811]
[1750686280830,633.34,136.42,136.24,32.18665811]
[1750686281028,32.18665811,136.4,136.27,32.18665811]
[1750686281228,7.3331,136.33,136.16,62.0]
[1750686281428,32.18665811,136.34,136.23,32.18665811]
[1750686281629,32.18665811,136.34,136.16,62.0]
[1750686281824,32.18665811,136.31,136.17,32.18665811]
[1750686282024,633.48,136.31,136.13,4.9292]
[1750686282224,633.48,136.31,136.06,633.48]
[1750686282225,7.3412,136.18,136.11,7.3444]
[1750686282525,32.18665811,136.24,136.13,32.18665811]
[1750686282724,2.271,136.29,136.16,32.18665811]
[1750686282923,2.271,136.29,136.17,7.3408]
[1750686283126,2.271,136.29,136.07,2.4218]
[1750686283328,2.271,136.29,136.15,32.18665811]
[1750686283626,34.45765811,136.29,136.08,2.3613]
[1750686283824,7.3376,136.24,136.17,7.341]
[1750686284026,32.18665811,136.28,136.15,32.18665811]
[1750686284328,32.18665811,136.25,136.12,32.18665811]
[1750686284723,32.31171742,136.21,136.07,64.4218]
[1750686284923,32.31171742,136.21,136.08,32.31171742]
[1750686285123,32.31171742,136.19,136.07,2.4218]
[1750686285326,32.31171742,136.19,136.0,1.27842475]
[1750686285524,2.271,136.29,136.05,32.33230223]
[1750686285827,32.33230223,136.16,135.97,2.2647]
[1750686286132,32.33230223,136.17,136.03,32.33230223]
[1750686286431,32.33230223,136.18,136.06,32.33230223]
[1750686286628,32.33230223,136.18,136.05,32.33230223]
[1750686286835,32.33230223,136.18,136.04,32.33230223]
[1750686287127,32.33230223,136.17,136.04,32.33230223]
[1750686287328,2.285,136.27,136.07,32.33230223]
[1750686287519,2.285,136.27,136.09,7.3454]
[1750686287721,32.33230223,136.15,136.04,32.33230223]
[1750686288027,7.3439,136.13,136.02,34.82460223]
[1750686288226,32.33230223,136.15,136.02,34.82460223]
[1750686288416,7.3449,136.11,136.04,7.348]
[1750686288616,32.33230223,136.15,136.0,32.33230223]
[1750686288828,32.33230223,136.15,135.97,2.2647]
[1750686289032,4.7943,136.18,136.05,7.3474]
[1750686289224,32.33230223,136.15,136.02,32.33230223]
[1750686289629,32.33230223,136.17,136.04,32.33230223]
[1750686289825,32.33230223,136.16,135.97,2.2647]
[1750686290026,32.33230223,136.16,136.02,32.33230223]
[1750686290227,7.3446,136.11,136.05,7.3476]
[1750686290631,32.33230223,136.16,136.02,32.33230223]
[1750686290826,32.33230223,136.17,136.02,32.33230223]
[1750686291427,32.33230223,136.17,136.04,32.33230223]
[1750686291731,4.7943,136.18,136.1,7.3446]
[1750686291927,4.7943,136.18,136.07,32.33230223]
[1750686292127,2.4194,136.18,136.07,32.33230223]
[1750686292327,2.4194,136.18,136.1,32.33230223]
[1750686292629,32.33230223,136.23,136.1,32.33230223]
[1750686292826,2.3263,136.25,136.13,32.33230223]
[1750686293030,2.3263,136.25,136.12,32.28992405]
[1750686293230,7.3403,136.19,136.12,7.3435]
[1750686293428,32.28992405,136.23,136.1,32.28992405]
[1750686293628,32.28992405,136.2,136.1,32.28992405]
[1750686293933,32.31260271,136.22,136.09,32.31260271]
[1750686294231,39.81368025,136.25,136.14,7.3425]
[1750686294431,39.81368025,136.25,136.09,37.48738025]
[1750686294635,39.81277341,136.25,136.09,37.48647341]
[1750686295832,39.81599268,136.25,136.15,7.3423]
[1750686296031,2.3263,136.25,136.01,62.0]
[1750686296228,37.48969268,136.23,136.01,62.0]
[1750686296427,7.3407,136.18,136.02,2.256]
[1750686296634,37.48969268,136.23,136.02,2.256]
[1750686296834,7.3427,136.15,136.08,7.3456]
[1750686297027,37.48969268,136.2,136.03,37.48969268]
[1750686297433,37.48969268,136.2,136.08,7.3456]
[1750686297932,7.3418,136.16,136.1,7.3449]
[1750686298133,37.48969268,136.2,136.03,37.48969268]
[1750686298729,37.48969268,136.2,136.04,37.48969268]
[1750686299335,37.48969268,136.17,136.02,2.256]
[1750686300228,2.285,136.27,136.02,2.256]
[1750686300430,4.802,136.35,136.08,37.48969268]
[1750686300639,37.48969268,136.28,136.11,37.48969268]
[1750686300836,37.48969268,136.25,136.02,2.256]
[1750686301134,4.802,136.24,136.09,37.48969268]
[1750686301320,4.802,136.24,136.02,2.256]
[1750686301321,39.87349268,136.24,136.02,2.256]
[1750686301522,2.3838,136.24,136.02,2.256]
[1750686301728,37.48969268,136.18,136.02,2.256]
[1750686301929,2.4677,136.37,136.16,37.48969268]
[1750686302130,634.34,136.44,136.25,37.48969268]
[1750686302323,7.2132,136.49,136.31,37.48969268]
[1750686302529,7.2132,136.49,136.26,2.3499]
[1750686302530,4.7455,136.49,136.26,2.3499]
[1750686302833,37.48969268,136.48,136.27,39.94669268]
[1750686303034,37.48969268,136.42,136.23,2.3738]
[1750686303334,22.23,136.48,136.24,101.95689268]
[1750686303526,4.7455,136.49,136.24,2.4672]
[1750686303834,7.3277,136.43,136.36,7.3309]
[1750686304031,4.7455,136.49,136.25,2.2795]
[1750686304341,10.0,136.5,136.26,37.48969268]
[1750686304539,10.0,136.5,136.36,37.48969268]
[1750686304735,37.48969268,136.48,136.3,37.48969268]
[1750686304932,10.0,136.5,136.25,636.6195]
[1750686305129,8.45540763,136.49,136.24,2.4672]
[1750686305331,37.48969268,136.4,136.24,2.4672]
[1750686305530,13.05049099,136.49,136.14,634.0]
[1750686305531,37.48969268,136.34,136.14,634.0]
[1750686305730,2.2685,136.39,136.15,2.4697]
[1750686305935,7.3347,136.3,136.15,2.4697]
[1750686306134,37.48969268,136.3,136.15,2.4697]
[1750686306437,37.48969268,136.37,136.24,7.3373]
[1750686306627,2.2685,136.39,136.24,62.0]
[1750686306830,2.2685,136.39,136.25,2.4697]
[1750686307026,37.48969268,136.35,136.16,37.48969268]
[1750686307329,37.48969268,136.32,136.17,2.4697]
[1750686307527,37.48969268,136.35,136.17,2.4697]
[1750686307739,2.4896,136.41,136.29,37.48969268]
[1750686307928,37.48969268,136.4,136.23,37.48969268]
[1750686308130,37.48969268,136.37,136.2,37.48969268]
[1750686308529,2.4896,136.41,136.2,37.48969268]
[1750686308729,8.49212828,136.41,136.23,37.48969268]
[1750686309135,11.15774747,136.41,136.18,634.0]
[1750686309337,6.00252828,136.41,136.18,634.0]
[1750686309643,6.00252828,136.41,136.25,37.48969268]
[1750686309833,43.49222096,136.41,136.26,4.6701]
[1750686310039,6.00252828,136.4,136.18,671.48969268]
[1750686310341,37.48969268,136.33,136.19,2.3605]
[1750686310735,37.48969268,136.3,136.19,2.3605]
[1750686310935,8.24979099,136.37,136.19,2.3605]
[1750686311140,7.3363,136.27,136.2,7.3395]
[1750686311331,37.48969268,136.3,136.19,2.3605]
[1750686311531,6.02247605,136.29,136.17,2.3096]
[1750686311938,37.48969268,136.27,136.14,2.3755]
[1750686312140,7.3368,136.26,136.19,7.3397]
[1750686312343,6.03321594,136.29,136.14,2.3755]
[1750686312542,6.03321594,136.28,136.14,2.3755]
[1750686312839,6.03321594,136.29,136.14,39.86519268]
[1750686313037,6.03321594,136.28,136.14,39.86519268]
[1750686313232,6.03321594,136.29,136.14,39.86519268]
[1750686313438,6.03321594,136.31,136.17,37.48969268]
[1750686313640,6.03321594,136.32,136.23,37.48969268]
[1750686313944,6.03635475,136.34,136.24,2.3755]
[1750686314244,6.03635475,136.33,136.28,7.3349]
[1750686314443,6.03635475,136.37,136.29,37.48969268]
[1750686314646,6.03635475,136.41,136.32,37.48969268]
[1750686314946,6.03635475,136.45,136.32,37.48969268]
[1750686315136,6.03635475,136.45,136.25,4.8176]
[1750686315137,6.03635475,136.44,136.25,4.8176]
[1750686315334,6.03635475,136.43,136.28,37.48969268]
[1750686315537,6.03635475,136.42,136.31,37.48969268]
[1750686316045,37.48969268,136.44,136.25,42.30729268]
[1750686316243,6.03635475,136.43,136.25,4.8176]
[1750686316440,6.03635475,136.42,136.32,32.22061064]
[1750686316644,6.03635475,136.44,136.38,32.22061064]
[1750686316843,6.03635475,136.47,136.38,32.22061064]
[1750686317039,2.3875,136.49,136.26,76.6719]
[1750686317040,6.03243248,136.49,136.41,32.22061064]
[1750686317239,10.0,136.5,136.46,32.22061064]
[1750686317435,10.0,136.5,136.35,32.22061064]
[1750686317635,10.0,136.5,136.46,32.22061064]
[1750686318042,10.0,136.5,136.47,32.22061064]
[1750686318236,8.24979099,136.62,136.36,6.9328]
[1750686318441,6.01381948,136.63,136.5,32.22061064]
[1750686318646,6.01381948,136.63,136.53,32.22061064]
[1750686318844,17.13868648,136.68,136.36,6.9328]
[1750686318845,6.01381948,136.65,136.56,32.22061064]
[1750686319048,4.764,136.68,136.56,32.22061064]
[1750686319049,7.3153,136.66,136.56,32.22061064]
[1750686319448,34.60621064,136.68,136.56,32.22061064]
[1750686319757,32.22061064,136.59,136.51,2.2591]
[1750686319950,8.24979099,136.66,136.36,2.2737]
[1750686319951,8.24979099,136.68,136.46,14.6504]
[1750686320147,6.08557578,136.69,136.5,32.22061064]
[1750686320343,15.05474808,136.77,136.68,32.22061064]
[1750686320344,6.08557578,136.76,136.68,32.22061064]
[1750686320540,6.08557578,136.78,136.68,32.22061064]
[1750686320751,7.3085,136.78,136.7,7.3127]
[1750686320947,8.24979099,136.85,136.71,32.22061064]
[1750686321142,32.22061064,136.8,136.51,2.4575]
[1750686321351,32.22061064,136.8,136.66,32.22061064]
[1750686321647,32.22061064,136.74,136.6,32.22061064]
[1750686321845,2.3574,136.79,136.57,32.22061064]
[1750686322041,32.22061064,136.65,136.51,34.67811064]
[1750686322246,633.26,136.7,136.51,2.4575]
[1750686322444,633.26,136.7,136.52,32.22061064]
[1750686322644,32.22061064,136.69,136.55,32.22061064]
[1750686322851,633.26,136.7,136.51,2.4575]
[1750686323048,32.22061064,136.68,136.54,32.22061064]
[1750686323257,665.48061064,136.7,136.56,32.22061064]
[1750686323453,633.26,136.7,136.54,32.22061064]
[1750686323654,7.3159,136.65,136.58,7.319]
[1750686323847,32.22061064,136.68,136.54,32.22061064]
[1750686324251,633.26,136.7,136.57,32.22061064]
[1750686324558,32.22061064,136.67,136.53,32.22061064]
[1750686324859,32.22061064,136.64,136.51,2.4575]
[1750686325160,2.3938,136.69,136.51,2.4575]
[1750686325352,2.3938,136.69,136.53,32.22061064]
[1750686325550,32.22061064,136.65,136.51,34.67811064]
[1750686325857,7.318,136.61,136.54,7.3212]
[1750686326053,32.22061064,136.63,136.51,34.67811064]
[1750686326248,32.22061064,136.6,136.51,2.4575]
[1750686326453,32.22061064,136.6,136.47,36.94431064]
[1750686326752,32.22061064,136.67,136.47,4.7237]
[1750686326955,32.22061064,136.61,136.48,32.22061064]
[1750686327252,32.22061064,136.52,136.4,32.22061064]
[1750686327453,32.22061064,136.49,136.39,2.4796]
[1750686327652,632.76,136.57,136.39,2.4796]
[1750686327852,632.76,136.57,136.39,9.8088]
[1750686327853,7.3263,136.45,136.39,9.8088]
[1750686328055,32.22061064,136.46,136.38,2.4058]
[1750686328253,2.2442,136.55,136.39,32.22061064]
[1750686328553,2.2442,136.55,136.39,2.4796]
[1750686328756,632.76,136.57,136.46,32.22061064]
[1750686328957,7.3225,136.52,136.44,32.22061064]
[1750686329155,632.76,136.57,136.39,2.4796]
[1750686329363,632.76,136.57,136.45,32.22061064]
[1750686329556,32.22061064,136.55,136.43,32.22061064]
[1750686330056,632.76,136.57,136.39,2.4796]
[1750686330260,32.22061064,136.5,136.39,2.4796]
[1750686330758,32.22061064,136.47,136.39,2.4796]
[1750686330962,32.19074694,136.47,136.39,2.4796]
[1750686331154,32.19074694,136.47,136.38,2.4058]
[1750686331350,32.17247391,136.54,136.39,32.17247391]
[1750686331662,632.76,136.57,136.38,2.4058]
[1750686331854,32.15453532,136.52,136.38,2.4058]
[1750686332254,32.15453532,136.53,136.42,32.15453532]
[1750686332452,664.91453532,136.57,136.42,32.15453532]
[1750686332658,7.3209,136.55,136.49,7.3236]
[1750686332854,632.76,136.57,136.48,32.15453532]
[1750686333868,2.3098,136.62,136.39,694.9]
[1750686334058,226.5422275,136.63,136.53,32.15453532]
[1750686334652,226.5422275,136.63,136.39,632.9]
[1750686334653,632.9,136.67,136.56,32.15453532]
[1750686335055,2.3902,136.73,136.5,32.15453532]
[1750686335250,2.4784,136.74,136.5,32.15453532]
[1750686335251,7.3107,136.74,136.66,32.04378426]
[1750686335453,632.72,136.76,136.63,32.04378426]
[1750686335656,632.72,136.76,136.51,640.0264]
[1750686335657,7.3132,136.7,136.6,32.04378426]
[1750686335952,32.04378426,136.66,136.52,32.04378426]
[1750686336257,32.04378426,136.63,136.51,4.8579]
[1750686336456,32.04378426,136.65,136.51,36.90168426]
[1750686336769,32.04378426,136.75,136.63,32.04378426]
[1750686336952,664.76378426,136.77,136.63,32.04378426]
[1750686337154,32.04378426,136.71,136.58,32.04378426]
[1750686337452,632.72,136.77,136.64,32.04378426]
[1750686337657,632.72,136.77,136.68,32.04378426]
[1750686337959,632.72,136.77,136.53,635.1685]
[1750686337960,32.04378426,136.87,136.74,32.04378426]
[1750686338162,32.04378426,136.84,136.72,32.04378426]
[1750686338363,32.04378426,136.83,136.66,4.7119]
[1750686338562,636.39904836,136.88,136.71,32.04378426]
[1750686338868,32.01916778,136.84,136.66,4.7119]
[1750686339052,32.04497663,136.78,136.66,4.7119]
[1750686339252,32.04749222,136.78,136.7,7.3122]
[1750686339451,32.04749222,136.78,136.65,32.04749222]
[1750686339656,32.04749222,136.77,136.65,32.04749222]
[1750686339958,32.04749222,136.77,136.68,7.3134]
[1750686340151,32.04749222,136.74,136.6,4.8055]
[1750686340354,36.69119222,136.76,136.65,32.04749222]
[1750686340754,7.3122,136.72,136.66,7.3144]
[1750686340961,36.69119222,136.76,136.62,32.04749222]
[1750686341163,32.04749222,136.73,136.6,4.8055]
[1750686341352,4.6437,136.76,136.59,32.04749222]
[1750686341563,32.04749222,136.71,136.58,32.04749222]
[1750686341854,32.04749222,136.72,136.61,32.04749222]
[1750686342067,34.40779222,136.75,136.61,32.04749222]
[1750686342259,34.40779222,136.75,136.55,4.8941]
[1750686342462,7.313,136.7,136.64,7.3156]
[1750686342661,34.40779222,136.75,136.56,32.04749222]
[1750686342662,32.04749222,136.68,136.56,32.04749222]
[1750686342959,2.3603,136.75,136.56,32.04749222]
[1750686343163,2.3603,136.75,136.55,4.8941]
[1750686343363,32.05639367,136.69,136.55,4.8941]
[1750686343557,32.05639367,136.72,136.58,32.05639367]
[1750686343758,32.05639367,136.74,136.62,32.05639367]
[1750686343971,2.3542,136.75,136.65,7.3154]
[1750686344266,2.3542,136.75,136.62,32.05639367]
[1750686344459,2.3542,136.75,136.55,4.8941]
[1750686344460,32.05639367,136.71,136.55,2.4497]
[1750686344654,32.05639367,136.59,136.46,32.05639367]
[1750686344855,32.05639367,136.6,136.49,32.05639367]
[1750686345768,36.77269367,136.62,136.49,32.05639367]
[1750686345969,36.77269367,136.62,136.52,32.05639367]
[1750686346169,632.14,136.63,136.43,2.2678]
[1750686346554,664.19639367,136.63,136.51,32.05639367]
[1750686346869,664.19639367,136.63,136.49,32.14234506]
[1750686346870,664.28234506,136.63,136.49,32.14234506]
[1750686347164,34.5886423,136.62,136.5,32.1249423]
[1750686347460,32.1249423,136.56,136.44,32.1249423]
[1750686347664,32.1249423,136.6,136.47,32.1249423]
[1750686347868,4.785,136.61,136.51,32.12990368]
[1750686348166,7.3191,136.59,136.54,7.3208]
[1750686348360,36.91490368,136.61,136.49,32.12990368]
[1750686348562,4.785,136.61,136.49,32.12990368]
[1750686348867,32.12990368,136.56,136.43,34.39770368]
[1750686349170,7.3233,136.51,136.46,7.3252]
[1750686349469,664.30990368,136.52,136.39,32.12990368]
[1750686349669,632.18,136.51,136.39,32.12990368]
[1750686350066,632.18,136.51,136.33,2.3926]
[1750686350067,632.18,136.51,136.4,32.1689008]
[1750686350458,632.18,136.51,136.34,2.4873]
[1750686350660,632.32,136.58,136.46,32.1689008]
[1750686351065,632.32,136.58,136.49,32.1689008]
[1750686351267,7.3212,136.55,136.49,32.1689008]
[1750686351576,632.32,136.58,136.49,32.1689008]
[1750686351769,7.3201,136.57,136.49,32.1689008]
[1750686351966,632.32,136.58,136.49,32.1689008]
[1750686352265,7.3198,136.57,136.49,32.1689008]
[1750686352465,632.32,136.58,136.38,14.659]
[1750686352666,32.1689008,136.56,136.36,634.7219]
[1750686352865,632.32,136.58,136.43,32.16651612]
[1750686353070,32.16651612,136.57,136.43,32.16651612]
[1750686353269,7.3233,136.51,136.46,39.49191612]
[1750686353468,32.16651612,136.57,136.46,32.16651612]
[1750686353671,32.16651612,136.54,136.41,32.16651612]
[1750686354073,2.4093,136.53,136.41,32.16651612]
[1750686354370,7.3245,136.49,136.41,32.16651612]
[1750686354567,2.4093,136.53,136.41,32.16651612]
[1750686354768,2.4093,136.53,136.44,32.16651612]
[1750686354963,2.4093,136.53,136.48,7.3242]
[1750686354964,7.3224,136.52,136.48,7.3242]
[1750686355164,2.4093,136.53,136.36,634.7219]
[1750686355473,2.4093,136.53,136.41,32.16392298]
[1750686355766,32.15388229,136.5,136.38,32.15388229]
[1750686356177,32.15388229,136.47,136.33,32.15388229]
[1750686356370,632.5,136.47,136.36,32.15388229]
[1750686356576,632.5,136.47,136.29,2.3752]
[1750686356577,632.5,136.47,136.41,32.16388638]
[1750686356770,632.5,136.47,136.32,14.6663]
[1750686356966,632.5,136.47,136.38,32.16388638]
[1750686357368,632.5,136.47,136.41,32.16388638]
[1750686357676,632.5,136.47,136.29,4.6677]
[1750686357872,5.40244868,136.46,136.35,32.16388638]
[1750686358174,32.16376884,136.52,136.29,4.6677]
[1750686358376,32.16376884,136.49,136.34,32.16376884]
[1750686358568,32.20728675,136.44,136.32,32.20728675]
[1750686359068,7.3284,136.41,136.29,4.6677]
[1750686359271,632.5,136.45,136.33,32.20728675]
[1750686359470,7.3286,136.41,136.32,32.20728675]
[1750686359871,6.12260914,136.44,136.32,32.20728675]
[1750686360083,7.3285,136.41,136.32,32.20728675]
[1750686360281,6.12260914,136.44,136.33,32.20728675]
[1750686360485,632.5,136.45,136.37,32.18141766]
[1750686360678,2.4555,136.52,136.43,32.18141766]
[1750686360874,6.12435778,136.55,136.29,26.6716]
[1750686361074,6.12435778,136.56,136.49,32.12500839]
[1750686361280,669.64731766,136.61,136.29,4.6677]
[1750686361281,6.12435778,136.58,136.52,32.12500839]
[1750686361478,2.3671,136.67,136.55,32.12500839]
[1750686361682,32.12500839,136.64,136.51,96.58470839]
[1750686361887,11.36956958,136.63,136.51,62.0]
[1750686362082,32.12500839,136.61,136.42,2.4597]
[1750686362387,32.12500839,136.58,136.42,2.4597]
[1750686362690,11.36956958,136.6,136.42,2.4597]
[1750686362691,638.72486165,136.57,136.49,32.12500839]
[1750686362885,32.12500839,136.55,136.41,34.61430839]
[1750686363185,32.12500839,136.52,136.38,32.12500839]
[1750686363488,5.23191136,136.56,136.43,32.12500839]
[1750686363681,7.3209,136.55,136.48,32.12500839]
[1750686363876,6.07114983,136.58,136.46,32.12500839]
[1750686364081,6.07114983,136.57,136.49,32.12500839]
[1750686364383,6.07114983,136.57,136.37,2.3382]
[1750686364384,6.07114983,136.58,136.48,32.12500839]
[1750686364599,10.83214983,136.59,136.37,2.3382]
[1750686364781,7.3225,136.52,136.43,32.12500839]
[1750686365088,4.761,136.59,136.49,32.12500839]
[1750686365089,6.07114983,136.57,136.49,32.12500839]
[1750686365285,6.07114983,136.58,136.38,62.0]
[1750686365487,6.07114983,136.58,136.47,32.12500839]
[1750686365686,7.322,136.53,136.38,62.0]
[1750686365985,6.07114983,136.56,136.44,32.12500839]
[1750686366188,38.19615822,136.55,136.44,32.12500839]
[1750686366482,38.19615822,136.54,136.41,32.12500839]
[1750686366684,5.23452903,136.58,136.44,32.12500839]
[1750686366986,6.07681102,136.57,136.44,32.12500839]
[1750686367182,6.07681102,136.56,136.37,2.3382]
[1750686367387,32.12500839,136.51,136.41,32.12500839]
[1750686367589,32.12500839,136.51,136.37,2.3382]
[1750686367590,6.07801256,136.5,136.39,32.12500839]
[1750686367788,7.326,136.46,136.41,7.3281]
[1750686367991,6.07801256,136.5,136.39,32.12500839]
[1750686368186,5.23452903,136.53,136.39,32.12500839]
[1750686368187,38.20302095,136.52,136.39,32.12500839]
[1750686368490,6.07801256,136.51,136.39,32.12500839]
[1750686368694,6.07801256,136.51,136.38,32.1781474]
[1750686368882,32.1781474,136.51,136.38,32.1781474]
[1750686369078,6.07801256,136.5,136.34,32.1781474]
[1750686369289,32.1781474,136.42,136.31,34.5120474]
[1750686369491,32.1781474,136.39,136.26,32.1781474]
[1750686369787,32.1781474,136.39,136.25,32.1781474]
[1750686370187,32.1781474,136.36,136.24,32.1781474]
[1750686370388,32.1781474,136.36,136.27,7.3355]
[1750686370692,32.1781474,136.36,136.24,32.1781474]
[1750686371093,4.8477,136.38,136.27,32.1781474]
[1750686371288,2.4834,136.38,136.27,32.1781474]
[1750686371685,2.4834,136.38,136.23,2.4529]
[1750686371883,32.1781474,136.35,136.22,2.4079]
[1750686372084,32.1781474,136.34,136.22,32.1781474]
[1750686372289,32.1781474,136.34,136.17,2.3883]
[1750686372290,32.1781474,136.31,136.2,32.1781474]
[1750686372484,32.1781474,136.31,136.18,32.1781474]
[1750686372691,32.1781474,136.32,136.2,32.1781474]
[1750686372887,32.1781474,136.32,136.21,7.3389]
[1750686373197,32.1781474,136.29,136.15,32.1781474]
[1750686373395,7.3389,136.22,136.17,7.3408]
[1750686373587,32.1781474,136.26,136.13,32.1781474]
[1750686373997,7.3393,136.21,136.13,32.1781474]
[1750686374284,32.1781474,136.26,136.13,32.1781474]
[1750686374494,2.4913,136.28,136.13,32.1781474]
[1750686374695,32.1781474,136.26,136.13,32.1781474]
[1750686374899,32.1781474,136.23,136.12,4.8897]
[1750686375191,32.1781474,136.23,136.1,32.1781474]
[1750686375400,32.1781474,136.2,136.07,2.2763]
[1750686375590,32.1781474,136.2,136.06,243.24]
[1750686375591,7.3421,136.16,136.11,7.3443]
[1750686375794,32.1781474,136.17,136.05,34.5938474]
[1750686375996,32.1781474,136.18,136.05,2.4157]
[1750686376294,32.1781474,136.15,136.04,2.474]
[1750686376494,2.4431,136.22,136.08,32.1781474]
[1750686376692,32.1781474,136.17,136.04,34.6521474]
[1750686376892,32.1781474,136.14,136.04,2.474]
[1750686377291,32.1781474,136.14,136.03,32.1781474]
[1750686377292,32.1781474,136.14,136.02,32.1781474]
[1750686377488,32.1781474,136.14,136.0,2.4349]
[1750686377991,32.1781474,136.14,136.01,32.1781474]
[1750686378595,34.75867804,136.22,136.09,32.31557804]
[1750686378797,34.75867804,136.22,136.02,62.0]
[1750686378997,32.31557804,136.19,136.07,32.31557804]
[1750686379197,32.31557804,136.16,136.0,2.4349]
[1750686379399,7.3434,136.13,136.08,7.3457]
[1750686379605,2.4431,136.22,136.06,32.31557804]
[1750686379803,2.4431,136.22,136.0,2.4349]
[1750686379987,32.31557804,136.2,136.0,2.4349]
[1750686380498,32.31557804,136.17,136.1,7.3449]
[1750686380698,32.31557804,136.17,136.06,32.31557804]
[1750686381089,2.4431,136.22,136.06,32.31557804]
[1750686381295,32.31557804,136.2,136.07,32.31557804]
[1750686381494,2.4431,136.22,136.05,32.31557804]
[1750686381696,2.4431,136.22,136.13,32.31557804]
[1750686381986,2.4431,136.22,136.14,7.3426]
[1750686382186,2.4431,136.22,136.13,32.31557804]
[1750686382394,2.4431,136.22,136.01,62.0]
[1750686382395,2.3328,136.26,136.16,32.31557804]
[1750686382595,2.3328,136.26,136.17,7.341]
[1750686382796,32.31557804,136.22,136.09,7.3187]
[1750686383001,7.3391,136.21,136.13,7.3433]